[Event "Early-Titled-Tuesday-Blitz-October-24-2023"]
[Site "Chess.com"]
[Date "2023.10.24"]
[Round "6"]
[White "Juicy_Fork"]
[Black "BeautiFullMindChess"]
[Result "1-0"]
[WhiteElo "2448"]
[BlackElo "2252"]
[TimeControl "180+1"]
[EndTime "9:05:02 PDT"]
[Termination "Juicy_Fork won by resignation"]

1. e4 {[%clk 0:02:57.1]} 1... d5 {[%clk 0:02:59.4]} 2. exd5 {[%clk 0:02:56.7]}
2... Qxd5 {[%clk 0:02:59.5]} 3. Nc3 {[%clk 0:02:56.6]} 3... Qa5 {[%clk
0:02:59.6]} 4. d4 {[%clk 0:02:55.7]} 4... Nf6 {[%clk 0:02:59.9]} 5. Nf3 {[%clk
0:02:53.5]} 5... Bf5 {[%clk 0:02:58.9]} 6. Bc4 {[%clk 0:02:52.4]} 6... e6 {[%clk
0:02:59.5]} 7. Bd2 {[%clk 0:02:51.8]} 7... Bb4 {[%clk 0:02:59.5]} 8. a3 {[%clk
0:02:51.1]} 8... Bxc3 {[%clk 0:02:59.4]} 9. Bxc3 {[%clk 0:02:52]} 9... Qb6
{[%clk 0:03:00]} 10. Qe2 {[%clk 0:02:47.4]} 10... O-O {[%clk 0:02:57.8]} 11.
O-O-O {[%clk 0:02:43.5]} 11... Nc6 {[%clk 0:02:54.3]} 12. Ne5 {[%clk 0:02:40]}
12... Rfd8 {[%clk 0:02:45.3]} 13. Nxc6 {[%clk 0:01:57]} 13... Qxc6 {[%clk
0:02:45.2]} 14. f3 {[%clk 0:01:55.4]} 14... Nd5 {[%clk 0:02:35.9]} 15. Bd2
{[%clk 0:01:47.7]} 15... Bxc2 {[%clk 0:02:31.3]} 16. Rde1 {[%clk 0:01:28.4]}
16... Bg6 {[%clk 0:02:15.1]} 17. Kd1 {[%clk 0:01:03]} 17... b5 {[%clk
0:02:09.4]} 18. Bd3 {[%clk 0:00:58.8]} 18... Bxd3 {[%clk 0:01:51.2]} 19. Qxd3
{[%clk 0:00:59.7]} 19... Rd6 {[%clk 0:01:51.8]} 20. h4 {[%clk 0:00:45.8]} 20...
Rad8 {[%clk 0:01:51.3]} 21. h5 {[%clk 0:00:42.5]} 21... h6 {[%clk 0:01:46.5]}
22. g4 {[%clk 0:00:35.8]} 22... Nb6 {[%clk 0:01:47]} 23. Re4 {[%clk 0:00:32.1]}
23... Nc4 {[%clk 0:01:35.1]} 24. Bc1 {[%clk 0:00:23.2]} 24... e5 {[%clk
0:01:24.1]} 25. Ke2 {[%clk 0:00:10.9]} 25... Rxd4 {[%clk 0:01:12.9]} 26. Rxd4
{[%clk 0:00:08]} 26... Rxd4 {[%clk 0:01:13.8]} 27. Qf5 {[%clk 0:00:07.5]} 27...
Qe8 {[%clk 0:00:56.4]} 28. b3 {[%clk 0:00:05.3]} 28... Nd6 {[%clk 0:00:53.4]}
29. Qc2 {[%clk 0:00:05.3]} 29... e4 {[%clk 0:00:53.2]} 30. f4 {[%clk 0:00:05.6]}
30... e3 {[%clk 0:00:47.7]} 31. g5 {[%clk 0:00:04.7]} 31... Rxf4 {[%clk
0:00:46.3]} 32. Rh2 {[%clk 0:00:03.4]} 32... hxg5 {[%clk 0:00:45.4]} 33. h6
{[%clk 0:00:03]} 33... g6 {[%clk 0:00:44.2]} 34. Qxc7 {[%clk 0:00:02.1]} 34...
Rf2+ {[%clk 0:00:34.7]} 35. Rxf2 {[%clk 0:00:01.9]} 35... exf2+ {[%clk
0:00:35.6]} 36. Kxf2 {[%clk 0:00:02.7]} 36... Ne4+ {[%clk 0:00:31]} 37. Kf1
{[%clk 0:00:03.3]} 37... Ng3+ {[%clk 0:00:27.1]} 38. Qxg3 {[%clk 0:00:02.6]}
38... Qe7 {[%clk 0:00:21.1]} 39. Qxg5 {[%clk 0:00:02.8]} 1-0

[Event "Early-Titled-Tuesday-Blitz-October-24-2023"]
[Site "Chess.com"]
[Date "2023.10.24"]
[Round "6"]
[White "DanielTitichoca"]
[Black "topin8"]
[Result "1-0"]
[WhiteElo "2627"]
[BlackElo "2451"]
[TimeControl "180+1"]
[EndTime "9:05:03 PDT"]
[Termination "DanielTitichoca won on time"]

1. b3 {[%clk 0:03:00]} 1... c5 {[%clk 0:02:36.8]} 2. Bb2 {[%clk 0:02:57.3]} 2...
Nc6 {[%clk 0:02:32]} 3. Nf3 {[%clk 0:02:56.5]} 3... d6 {[%clk 0:02:31.3]} 4. e3
{[%clk 0:02:56.9]} 4... Nf6 {[%clk 0:02:29]} 5. d4 {[%clk 0:02:57.2]} 5... cxd4
{[%clk 0:02:28.6]} 6. Nxd4 {[%clk 0:02:57.9]} 6... g6 {[%clk 0:02:20.4]} 7. Nxc6
{[%clk 0:02:54.3]} 7... bxc6 {[%clk 0:02:19]} 8. c4 {[%clk 0:02:54]} 8... Bg7
{[%clk 0:02:16.4]} 9. Be2 {[%clk 0:02:54.6]} 9... O-O {[%clk 0:02:15.3]} 10. O-O
{[%clk 0:02:54.6]} 10... Bf5 {[%clk 0:01:20.5]} 11. Nd2 {[%clk 0:02:48.9]} 11...
a5 {[%clk 0:01:02]} 12. Bc3 {[%clk 0:02:48.5]} 12... c5 {[%clk 0:00:45.6]} 13.
Bf3 {[%clk 0:02:44.5]} 13... Ra7 {[%clk 0:00:45.2]} 14. Nb1 {[%clk 0:02:40.9]}
14... Be4 {[%clk 0:00:25.8]} 15. Na3 {[%clk 0:02:39.7]} 15... Qa8 {[%clk
0:00:20.1]} 16. Nb5 {[%clk 0:02:37.6]} 16... Rd7 {[%clk 0:00:19.5]} 17. Bxe4
{[%clk 0:02:14.9]} 17... Nxe4 {[%clk 0:00:19.1]} 18. Bxg7 {[%clk 0:02:14.6]}
18... Kxg7 {[%clk 0:00:20]} 19. f3 {[%clk 0:02:14.5]} 19... Nf6 {[%clk
0:00:19.8]} 20. e4 {[%clk 0:02:14]} 20... Rb8 {[%clk 0:00:18.8]} 21. a4 {[%clk
0:02:10.7]} 21... Ne8 {[%clk 0:00:13.4]} 22. Qe2 {[%clk 0:02:10.1]} 22... Nc7
{[%clk 0:00:13.2]} 23. e5 {[%clk 0:02:06.1]} 23... Nxb5 {[%clk 0:00:09.4]} 24.
axb5 {[%clk 0:02:04]} 24... d5 {[%clk 0:00:09.5]} 25. e6 {[%clk 0:02:04]} 25...
fxe6 {[%clk 0:00:09]} 26. Qxe6 {[%clk 0:02:04.7]} 26... Rbd8 {[%clk 0:00:07.5]}
27. f4 {[%clk 0:01:47]} 27... dxc4 {[%clk 0:00:06.9]} 28. bxc4 {[%clk
0:01:46.4]} 28... Qb7 {[%clk 0:00:02]} 29. Rae1 {[%clk 0:01:38]} 29... Rd6
{[%clk 0:00:01.4]} 30. Qxe7+ {[%clk 0:01:37.3]} 30... Qxe7 {[%clk 0:00:02.2]}
31. Rxe7+ {[%clk 0:01:37.5]} 31... Kf6 {[%clk 0:00:02.6]} 32. Ra7 {[%clk
0:01:38.1]} 32... Rd4 {[%clk 0:00:02.7]} 33. Rxa5 {[%clk 0:01:36.6]} 33... Rxc4
{[%clk 0:00:03.1]} 34. Ra7 {[%clk 0:01:36.5]} 34... Rb8 {[%clk 0:00:02.5]} 35.
Rxh7 {[%clk 0:01:30.9]} 35... Rxb5 {[%clk 0:00:02.5]} 36. h4 {[%clk 0:01:19.9]}
36... Rc2 {[%clk 0:00:02.2]} 37. Rf3 {[%clk 0:00:49.4]} 37... Rb1+ {[%clk
0:00:02.1]} 38. Kh2 {[%clk 0:00:49.3]} 38... Rbb2 {[%clk 0:00:01.8]} 39. Rg3
{[%clk 0:00:48.3]} 39... Rf2 {[%clk 0:00:02]} 40. Rh6 {[%clk 0:00:41.6]} 40...
Rxf4 {[%clk 0:00:02.1]} 41. Rhxg6+ {[%clk 0:00:40.9]} 41... Ke5 {[%clk
0:00:02.4]} 42. R6g5+ {[%clk 0:00:38.4]} 42... Kd4 {[%clk 0:00:02.3]} 43. R5g4
{[%clk 0:00:37.9]} 43... Rf2 {[%clk 0:00:01.3]} 44. h5 {[%clk 0:00:35.7]} 44...
c4 {[%clk 0:00:01.5]} 45. h6 {[%clk 0:00:35.6]} 45... Rxg4 {[%clk 0:00:01.9]}
46. Rxg4+ {[%clk 0:00:35.8]} 46... Kd3 {[%clk 0:00:02.4]} 47. h7 {[%clk
0:00:35.4]} 1-0

[Event "Early-Titled-Tuesday-Blitz-October-24-2023"]
[Site "Chess.com"]
[Date "2023.10.24"]
[Round "6"]
[White "GMWSO"]
[Black "scarabee43"]
[Result "1-0"]
[WhiteElo "3071"]
[BlackElo "2801"]
[TimeControl "180+1"]
[EndTime "9:05:05 PDT"]
[Termination "GMWSO won by resignation"]

1. b3 {[%clk 0:02:59.9]} 1... d5 {[%clk 0:02:59.2]} 2. Bb2 {[%clk 0:02:58.4]}
2... c5 {[%clk 0:02:56.6]} 3. e3 {[%clk 0:02:57.7]} 3... Nc6 {[%clk 0:02:56.4]}
4. Bb5 {[%clk 0:02:55.1]} 4... Bd7 {[%clk 0:02:52.5]} 5. Nf3 {[%clk 0:02:53.9]}
5... e6 {[%clk 0:02:52.3]} 6. O-O {[%clk 0:02:52.2]} 6... Nf6 {[%clk 0:02:52.7]}
7. c4 {[%clk 0:02:46.2]} 7... dxc4 {[%clk 0:02:47.8]} 8. Bxc4 {[%clk 0:02:41.2]}
8... Be7 {[%clk 0:02:46.8]} 9. Nc3 {[%clk 0:02:35.4]} 9... O-O {[%clk
0:02:46.9]} 10. Rc1 {[%clk 0:02:33.3]} 10... Rc8 {[%clk 0:02:44.7]} 11. Be2
{[%clk 0:02:27.4]} 11... a6 {[%clk 0:02:42.4]} 12. d3 {[%clk 0:02:26.5]} 12...
b5 {[%clk 0:02:30.7]} 13. Nd2 {[%clk 0:02:19.6]} 13... Nb4 {[%clk 0:02:18.9]}
14. a3 {[%clk 0:01:55.7]} 14... Nbd5 {[%clk 0:02:18.6]} 15. Nce4 {[%clk
0:01:56.3]} 15... Qb6 {[%clk 0:02:12.4]} 16. Rc2 {[%clk 0:01:52]} 16... Rfd8
{[%clk 0:02:07.3]} 17. Qa1 {[%clk 0:01:51.3]} 17... Bc6 {[%clk 0:01:52]} 18.
Rfc1 {[%clk 0:01:50.4]} 18... Bb7 {[%clk 0:01:49.1]} 19. Bf3 {[%clk 0:01:33.6]}
19... h6 {[%clk 0:01:43.7]} 20. h3 {[%clk 0:01:29.1]} 20... Nxe4 {[%clk
0:01:32]} 21. Nxe4 {[%clk 0:01:24.5]} 21... Bf8 {[%clk 0:01:30.7]} 22. d4 {[%clk
0:01:14.7]} 22... c4 {[%clk 0:00:39]} 23. bxc4 {[%clk 0:01:13.8]} 23... bxc4
{[%clk 0:00:39.7]} 24. Rxc4 {[%clk 0:01:11.8]} 24... Rxc4 {[%clk 0:00:31.3]} 25.
Rxc4 {[%clk 0:01:12.7]} 25... Rc8 {[%clk 0:00:31.9]} 26. Rxc8 {[%clk 0:01:11.5]}
26... Bxc8 {[%clk 0:00:32.6]} 27. Nc5 {[%clk 0:01:08.2]} 27... Nf6 {[%clk
0:00:28.1]} 28. Qc1 {[%clk 0:01:05.6]} 28... a5 {[%clk 0:00:22.5]} 29. a4 {[%clk
0:01:02.6]} 29... Ba6 {[%clk 0:00:20.6]} 30. Ba3 {[%clk 0:01:00.6]} 30... Bxc5
{[%clk 0:00:12]} 31. Qxc5 {[%clk 0:00:55.7]} 31... Qxc5 {[%clk 0:00:08.6]} 32.
dxc5 {[%clk 0:00:53.7]} 32... Kf8 {[%clk 0:00:06.2]} 33. c6+ {[%clk 0:00:51.5]}
33... Ke8 {[%clk 0:00:06.7]} 34. Bb2 {[%clk 0:00:52]} 34... Ke7 {[%clk
0:00:04.4]} 35. Bc3 {[%clk 0:00:51.6]} 35... Bc4 {[%clk 0:00:04.5]} 36. Bxa5
{[%clk 0:00:51.5]} 36... Bb3 {[%clk 0:00:04.3]} 37. Bb4+ {[%clk 0:00:51.8]}
37... Kd8 {[%clk 0:00:04.7]} 38. a5 {[%clk 0:00:52.7]} 38... Nd5 {[%clk
0:00:04.7]} 39. Bf8 {[%clk 0:00:51.9]} 39... g6 {[%clk 0:00:04.6]} 40. Bxh6
{[%clk 0:00:52.7]} 40... Kc7 {[%clk 0:00:05]} 41. e4 {[%clk 0:00:43.7]} 41...
Nb4 {[%clk 0:00:04.9]} 42. h4 {[%clk 0:00:40.5]} 42... Kxc6 {[%clk 0:00:04.9]}
43. Bd2 {[%clk 0:00:39.8]} 43... Na6 {[%clk 0:00:04.4]} 44. g4 {[%clk
0:00:39.4]} 44... Nc7 {[%clk 0:00:04.2]} 45. h5 {[%clk 0:00:39.4]} 45... gxh5
{[%clk 0:00:04.1]} 46. gxh5 {[%clk 0:00:40.3]} 46... Ne8 {[%clk 0:00:04.2]} 47.
h6 {[%clk 0:00:40.5]} 47... Nf6 {[%clk 0:00:04.5]} 48. e5+ {[%clk 0:00:40.8]}
48... Bd5 {[%clk 0:00:03]} 49. exf6 {[%clk 0:00:35.7]} 49... Bxf3 {[%clk
0:00:03.3]} 50. h7 {[%clk 0:00:36.6]} 1-0

[Event "Early-Titled-Tuesday-Blitz-October-24-2023"]
[Site "Chess.com"]
[Date "2023.10.24"]
[Round "6"]
[White "Ykow"]
[Black "M_One1126"]
[Result "0-1"]
[WhiteElo "2517"]
[BlackElo "2639"]
[TimeControl "180+1"]
[EndTime "9:05:07 PDT"]
[Termination "M_One1126 won by resignation"]

1. e4 {[%clk 0:03:00.9]} 1... c6 {[%clk 0:03:00]} 2. d4 {[%clk 0:02:58.1]} 2...
d5 {[%clk 0:03:00.9]} 3. Nc3 {[%clk 0:02:57.2]} 3... dxe4 {[%clk 0:03:00.8]} 4.
Nxe4 {[%clk 0:02:58.1]} 4... Nf6 {[%clk 0:03:01.7]} 5. Nxf6+ {[%clk 0:02:53.4]}
5... exf6 {[%clk 0:03:02.6]} 6. Be3 {[%clk 0:02:50.9]} 6... Bd6 {[%clk
0:03:01.4]} 7. Bd3 {[%clk 0:02:50.5]} 7... O-O {[%clk 0:03:00.6]} 8. Ne2 {[%clk
0:02:46]} 8... Nd7 {[%clk 0:02:55.7]} 9. O-O {[%clk 0:02:45.6]} 9... Re8 {[%clk
0:02:55.6]} 10. c4 {[%clk 0:02:43.7]} 10... Nf8 {[%clk 0:02:55.1]} 11. Qc2
{[%clk 0:02:44.2]} 11... Be6 {[%clk 0:02:44.4]} 12. a3 {[%clk 0:02:43.8]} 12...
Rc8 {[%clk 0:02:41.2]} 13. b4 {[%clk 0:02:44.1]} 13... b5 {[%clk 0:02:41.6]} 14.
d5 {[%clk 0:02:27.3]} 14... cxd5 {[%clk 0:02:25.1]} 15. c5 {[%clk 0:02:26.6]}
15... a6 {[%clk 0:02:24.4]} 16. Nf4 {[%clk 0:02:13.6]} 16... d4 {[%clk
0:02:11.7]} 17. Bd2 {[%clk 0:01:50.8]} 17... Bd7 {[%clk 0:02:00.4]} 18. Qb3
{[%clk 0:01:41.5]} 18... Bb8 {[%clk 0:01:52.2]} 19. Rac1 {[%clk 0:01:40]} 19...
Bc6 {[%clk 0:01:46.8]} 20. Rfe1 {[%clk 0:01:31.3]} 20... Qc7 {[%clk 0:01:46.7]}
21. g3 {[%clk 0:01:17.5]} 21... Qb7 {[%clk 0:01:44.9]} 22. Bf1 {[%clk
0:01:10.3]} 22... Ng6 {[%clk 0:01:40.8]} 23. Nxg6 {[%clk 0:01:06.7]} 23... hxg6
{[%clk 0:01:41.7]} 24. Qd3 {[%clk 0:00:57.3]} 24... Qd7 {[%clk 0:01:41.7]} 25.
h4 {[%clk 0:00:50.7]} 25... Qg4 {[%clk 0:01:37.2]} 26. Bg2 {[%clk 0:00:49.1]}
26... Bxg2 {[%clk 0:01:06]} 27. Kxg2 {[%clk 0:00:50]} 27... Qd7 {[%clk
0:01:01.7]} 28. Qf3 {[%clk 0:00:30.2]} 28... Rxe1 {[%clk 0:00:52.5]} 29. Bxe1
{[%clk 0:00:26.2]} 29... Rc6 {[%clk 0:00:49.4]} 30. Bd2 {[%clk 0:00:25.5]} 30...
f5 {[%clk 0:00:48.8]} 31. Bf4 {[%clk 0:00:25.3]} 31... Bxf4 {[%clk 0:00:47.5]}
32. gxf4 {[%clk 0:00:26.2]} 32... Kh7 {[%clk 0:00:38.2]} 33. Rd1 {[%clk
0:00:25.7]} 33... Re6 {[%clk 0:00:34.6]} 34. h5 {[%clk 0:00:24.5]} 34... gxh5
{[%clk 0:00:34.5]} 35. Qxh5+ {[%clk 0:00:22.1]} 35... Rh6 {[%clk 0:00:35.1]} 36.
Qf3 {[%clk 0:00:20.9]} 36... Rg6+ {[%clk 0:00:32.9]} 37. Kf1 {[%clk 0:00:20.1]}
37... Qe6 {[%clk 0:00:31.4]} 38. Rxd4 {[%clk 0:00:18.4]} 38... Qa2 {[%clk
0:00:31.2]} 39. Qh3+ {[%clk 0:00:17.3]} 39... Rh6 {[%clk 0:00:30.6]} 40. Qxf5+
{[%clk 0:00:16.1]} 40... g6 {[%clk 0:00:31.3]} 41. Qxf7+ {[%clk 0:00:15.7]}
41... Qxf7 {[%clk 0:00:30.5]} 42. c6 {[%clk 0:00:15.3]} 42... Rh1+ {[%clk
0:00:22.7]} 43. Kg2 {[%clk 0:00:14.8]} 43... Rc1 {[%clk 0:00:23.1]} 44. Rd7
{[%clk 0:00:14.5]} 44... Qg7 {[%clk 0:00:23.4]} 45. Rxg7+ {[%clk 0:00:12.2]}
45... Kxg7 {[%clk 0:00:24.3]} 0-1

[Event "Early-Titled-Tuesday-Blitz-October-24-2023"]
[Site "Chess.com"]
[Date "2023.10.24"]
[Round "6"]
[White "whitemirrorninja"]
[Black "JimDiGrease"]
[Result "0-1"]
[WhiteElo "2575"]
[BlackElo "2869"]
[TimeControl "180+1"]
[EndTime "9:05:08 PDT"]
[Termination "JimDiGrease won by checkmate"]

1. d4 {[%clk 0:03:00.9]} 1... d5 {[%clk 0:02:59.9]} 2. Nc3 {[%clk 0:03:00.7]}
2... Nf6 {[%clk 0:02:59.9]} 3. Bf4 {[%clk 0:03:00.3]} 3... c5 {[%clk 0:03:00.4]}
4. e3 {[%clk 0:02:58.3]} 4... cxd4 {[%clk 0:02:59.9]} 5. exd4 {[%clk 0:02:59.1]}
5... a6 {[%clk 0:03:00.4]} 6. Nf3 {[%clk 0:02:58.3]} 6... Nc6 {[%clk 0:03:00.9]}
7. Ne5 {[%clk 0:02:57.8]} 7... Bd7 {[%clk 0:03:01.5]} 8. Be2 {[%clk 0:02:55.6]}
8... e6 {[%clk 0:03:02]} 9. O-O {[%clk 0:02:50.4]} 9... Qb6 {[%clk 0:03:02.1]}
10. Nxc6 {[%clk 0:02:38.1]} 10... Bxc6 {[%clk 0:03:02.2]} 11. Rb1 {[%clk
0:02:33.4]} 11... Be7 {[%clk 0:03:02.4]} 12. b4 {[%clk 0:02:29.6]} 12... Rc8
{[%clk 0:02:39.6]} 13. b5 {[%clk 0:02:24.4]} 13... axb5 {[%clk 0:02:16.6]} 14.
Nxb5 {[%clk 0:02:25.3]} 14... Qd8 {[%clk 0:02:06.1]} 15. c4 {[%clk 0:01:36]}
15... Bxb5 {[%clk 0:01:36.7]} 16. Rxb5 {[%clk 0:01:33.1]} 16... dxc4 {[%clk
0:01:37.3]} 17. Rxb7 {[%clk 0:01:30.7]} 17... O-O {[%clk 0:01:36.3]} 18. Be5
{[%clk 0:01:19.4]} 18... Nd5 {[%clk 0:00:46.8]} 19. Bf3 {[%clk 0:01:03.4]} 19...
Bg5 {[%clk 0:00:43.8]} 20. Qa4 {[%clk 0:00:55.1]} 20... c3 {[%clk 0:00:32.4]}
21. Be4 {[%clk 0:00:37.6]} 21... Bh6 {[%clk 0:00:15.2]} 22. g3 {[%clk
0:00:36.3]} 22... g6 {[%clk 0:00:08.5]} 23. Qc2 {[%clk 0:00:20.5]} 23... Qa5
{[%clk 0:00:06.2]} 24. Bxd5 {[%clk 0:00:13.7]} 24... Qxd5 {[%clk 0:00:05]} 25.
Rb3 {[%clk 0:00:10.9]} 25... Bd2 {[%clk 0:00:05.5]} 26. Rd1 {[%clk 0:00:08.5]}
26... Rc4 {[%clk 0:00:05.1]} 27. Rxd2 {[%clk 0:00:06.7]} 27... cxd2 {[%clk
0:00:06]} 28. Qxd2 {[%clk 0:00:07.4]} 28... f6 {[%clk 0:00:06.1]} 29. Bf4 {[%clk
0:00:04.5]} 29... Rxd4 {[%clk 0:00:06.5]} 30. Qe2 {[%clk 0:00:04.8]} 30... Rd1+
{[%clk 0:00:06.8]} 31. Qf1 {[%clk 0:00:03.7]} 31... Rxf1+ {[%clk 0:00:06.9]} 32.
Kxf1 {[%clk 0:00:04.6]} 32... e5 {[%clk 0:00:07.6]} 33. Be3 {[%clk 0:00:04.7]}
33... Rc8 {[%clk 0:00:08]} 34. Bh6 {[%clk 0:00:04.1]} 34... Rc2 {[%clk
0:00:07.5]} 35. Rb8+ {[%clk 0:00:03.7]} 35... Kf7 {[%clk 0:00:08.1]} 36. Rf8+
{[%clk 0:00:04.4]} 36... Ke7 {[%clk 0:00:08.1]} 37. Re8+ {[%clk 0:00:03.2]}
37... Kxe8 {[%clk 0:00:08.1]} 38. Be3 {[%clk 0:00:02.5]} 38... Qh1# {[%clk
0:00:08.5]} 0-1

[Event "Early-Titled-Tuesday-Blitz-October-24-2023"]
[Site "Chess.com"]
[Date "2023.10.24"]
[Round "6"]
[White "esrosenberg"]
[Black "Dixit_Nikhil"]
[Result "0-1"]
[WhiteElo "2463"]
[BlackElo "2620"]
[TimeControl "180+1"]
[EndTime "9:05:15 PDT"]
[Termination "Dixit_Nikhil won on time"]

1. d4 {[%clk 0:03:00.9]} 1... Nf6 {[%clk 0:02:59.2]} 2. Nf3 {[%clk 0:03:00.9]}
2... g6 {[%clk 0:02:59.7]} 3. Nc3 {[%clk 0:03:01]} 3... Bg7 {[%clk 0:03:00.3]}
4. e4 {[%clk 0:03:00.8]} 4... d6 {[%clk 0:03:00.9]} 5. Be2 {[%clk 0:03:01.3]}
5... O-O {[%clk 0:03:01.5]} 6. O-O {[%clk 0:03:02.1]} 6... a6 {[%clk 0:03:00.3]}
7. Re1 {[%clk 0:02:56]} 7... Nc6 {[%clk 0:02:59.8]} 8. h3 {[%clk 0:02:47.9]}
8... b5 {[%clk 0:02:54.3]} 9. e5 {[%clk 0:02:44]} 9... Ne8 {[%clk 0:02:46.1]}
10. Bf4 {[%clk 0:02:42.7]} 10... dxe5 {[%clk 0:02:38.2]} 11. dxe5 {[%clk
0:02:42.5]} 11... Be6 {[%clk 0:02:38.3]} 12. Ne4 {[%clk 0:02:36.7]} 12... Qxd1
{[%clk 0:02:37.6]} 13. Raxd1 {[%clk 0:02:36.2]} 13... Nb4 {[%clk 0:02:35.4]} 14.
c3 {[%clk 0:02:34.2]} 14... Nd5 {[%clk 0:02:34.5]} 15. Bg3 {[%clk 0:02:27.4]}
15... c6 {[%clk 0:02:34.6]} 16. Nc5 {[%clk 0:02:27.2]} 16... Nec7 {[%clk
0:02:34.7]} 17. Nxe6 {[%clk 0:02:23]} 17... Nxe6 {[%clk 0:02:35.6]} 18. Nd4
{[%clk 0:02:22.6]} 18... Nxd4 {[%clk 0:02:33.3]} 19. cxd4 {[%clk 0:02:22.6]}
19... e6 {[%clk 0:02:27.9]} 20. Rc1 {[%clk 0:02:22]} 20... Rfc8 {[%clk
0:02:27.4]} 21. Bf3 {[%clk 0:02:11.9]} 21... Bh6 {[%clk 0:02:26.3]} 22. Rcd1
{[%clk 0:01:45.7]} 22... Bf8 {[%clk 0:02:18.8]} 23. a3 {[%clk 0:01:45.4]} 23...
a5 {[%clk 0:02:18.7]} 24. Rc1 {[%clk 0:01:45.2]} 24... Bh6 {[%clk 0:02:18]} 25.
Rc2 {[%clk 0:01:43.5]} 25... b4 {[%clk 0:02:04.7]} 26. Be4 {[%clk 0:01:33.4]}
26... Kf8 {[%clk 0:01:52.8]} 27. Kf1 {[%clk 0:01:22.8]} 27... Ke8 {[%clk
0:01:53.2]} 28. Ke2 {[%clk 0:01:18.2]} 28... Kd7 {[%clk 0:01:53.5]} 29. Kd3
{[%clk 0:01:15]} 29... Bf8 {[%clk 0:01:48.3]} 30. Bxd5 {[%clk 0:00:58.6]} 30...
cxd5 {[%clk 0:01:49.2]} 31. axb4 {[%clk 0:00:57.6]} 31... Bxb4 {[%clk
0:01:45.5]} 32. Rec1 {[%clk 0:00:56.4]} 32... Rxc2 {[%clk 0:01:44]} 33. Rxc2
{[%clk 0:00:56.6]} 33... h5 {[%clk 0:01:44]} 34. Bf4 {[%clk 0:00:54.8]} 34... a4
{[%clk 0:01:42.7]} 35. Bd2 {[%clk 0:00:54]} 35... Be7 {[%clk 0:01:41.3]} 36. Bc1
{[%clk 0:00:48.5]} 36... Rb8 {[%clk 0:01:41.1]} 37. g4 {[%clk 0:00:37.2]} 37...
h4 {[%clk 0:01:35.5]} 38. f4 {[%clk 0:00:36.9]} 38... Rb4 {[%clk 0:01:30.5]} 39.
f5 {[%clk 0:00:34.3]} 39... gxf5 {[%clk 0:01:29.3]} 40. gxf5 {[%clk 0:00:35.2]}
40... exf5 {[%clk 0:01:30]} 41. Bd2 {[%clk 0:00:28]} 41... Rb3+ {[%clk
0:01:29.7]} 42. Bc3 {[%clk 0:00:28.7]} 42... a3 {[%clk 0:01:27.9]} 43. bxa3
{[%clk 0:00:27.4]} 43... Rxa3 {[%clk 0:01:28.4]} 44. Kd2 {[%clk 0:00:25.7]}
44... Rb3 {[%clk 0:01:26.1]} 45. Ra2 {[%clk 0:00:25.1]} 45... Rb6 {[%clk
0:01:23.3]} 46. Ra7+ {[%clk 0:00:24.7]} 46... Ke6 {[%clk 0:01:23.5]} 47. Ra8
{[%clk 0:00:20.5]} 47... f4 {[%clk 0:01:22.1]} 48. Re8 {[%clk 0:00:16]} 48... f3
{[%clk 0:01:21.4]} 49. Ba5 {[%clk 0:00:09.3]} 49... f2 {[%clk 0:01:18.6]} 50.
Ke2 {[%clk 0:00:08.5]} 50... Rb2+ {[%clk 0:01:18.6]} 51. Kf1 {[%clk 0:00:08.5]}
51... Kd7 {[%clk 0:01:18.3]} 52. Rg8 {[%clk 0:00:07.1]} 52... Ra2 {[%clk
0:01:14]} 53. Bb6 {[%clk 0:00:06.2]} 53... Ra6 {[%clk 0:01:04.7]} 54. Bc5 {[%clk
0:00:05]} 54... Bxc5 {[%clk 0:01:04.8]} 55. dxc5 {[%clk 0:00:05.9]} 55... Ra3
{[%clk 0:01:05.2]} 56. Kxf2 {[%clk 0:00:05.3]} 56... Rxh3 {[%clk 0:01:05.2]} 57.
Rh8 {[%clk 0:00:03.4]} 57... Rc3 {[%clk 0:01:03.9]} 58. Rxh4 {[%clk 0:00:02.7]}
58... Rxc5 {[%clk 0:01:04.2]} 59. Ke3 {[%clk 0:00:02.2]} 59... Rc4 {[%clk
0:01:04.1]} 0-1